[Event "Titled Tuesday Blitz February 07 Early 2023"]
[White "Andrews, Todd"]
[Black "Rose, Felix"]
[WhiteFideId "2012456"]
[BlackFideId "5105722"]
[WhiteElo "2220"]
[BlackElo "2091"]
[Result "1-0"]
[Round "08"]
[TimeControl "180+2"]
[Date "2023.02.07"]
[WhiteClock "0:01:12"]
[BlackClock "0:00:06"]

1. e4 {[%clk 0:03:00]}  e5 {[%clk 0:02:58]} 2. Nf3 {[%clk 0:03:00]}  Nc6 {[%clk 0:02:58]} 3. d4 {[%clk 0:03:01]}  exd4 {[%clk 0:02:59]} 4. Nxd4 {[%clk 0:03:02]}  Nf6 {[%clk 0:02:58]} 5. Nxc6 {[%clk 0:03:02]}  bxc6 {[%clk 0:02:58]} 6. e5 {[%clk 0:03:03]}  Qe7 {[%clk 0:02:58]} 7. Qe2 {[%clk 0:03:04]}  Nd5 {[%clk 0:02:58]} 8. c4 {[%clk 0:03:04]}  Ba6 {[%clk 0:02:59]} 9. h4 {[%clk 0:03:04]}  f6 {[%clk 0:02:53]} 10. exf6 {[%clk 0:03:02]}  Qxe2+ {[%clk 0:02:45]} 11. Bxe2 {[%clk 0:03:02]}  Nxf6 {[%clk 0:02:46]} 12. Bf4 {[%clk 0:02:56]}  O-O-O {[%clk 0:02:22]} 13. Nd2 {[%clk 0:02:50]}  Bb4 {[%clk 0:02:09]} 14. O-O-O {[%clk 0:02:49]}  Rhe8 {[%clk 0:01:58]} 15. Bd3 {[%clk 0:02:42]}  d5 {[%clk 0:01:45]} 16. Bf5+ {[%clk 0:02:42]}  Kb7 {[%clk 0:01:43]} 17. cxd5 {[%clk 0:02:25]}  cxd5 {[%clk 0:01:34]} 18. Rh3 {[%clk 0:02:23]}  Be2 {[%clk 0:01:05]} 19. Rb3 {[%clk 0:02:14]}  a5 {[%clk 0:01:00]} 20. Re1 {[%clk 0:02:11]}  Bc4 {[%clk 0:00:58]} 21. Rxe8 {[%clk 0:02:01]}  Rxe8 {[%clk 0:00:54]} 22. Nxc4 {[%clk 0:01:59]}  dxc4 {[%clk 0:00:55]} 23. Re3 {[%clk 0:01:57]}  Rxe3 {[%clk 0:00:39]} 24. Bxe3 {[%clk 0:01:51]}  g6 {[%clk 0:00:31]} 25. Be6 {[%clk 0:01:44]}  c3 {[%clk 0:00:30]} 26. Bd4 {[%clk 0:01:44]}  cxb2+ {[%clk 0:00:30]} 27. Kxb2 {[%clk 0:01:43]}  Be7 {[%clk 0:00:28]} 28. f3 {[%clk 0:01:39]}  c5 {[%clk 0:00:28]} 29. Be5 {[%clk 0:01:39]}  Kc6 {[%clk 0:00:28]} 30. g4 {[%clk 0:01:37]}  Nd5 {[%clk 0:00:25]} 31. g5 {[%clk 0:01:33]}  Nb4 {[%clk 0:00:21]} 32. Bg3 {[%clk 0:01:21]}  Bd6 {[%clk 0:00:16]} 33. Bxd6 {[%clk 0:01:20]}  Kxd6 {[%clk 0:00:17]} 34. Bg8 {[%clk 0:01:21]}  Nd3+ {[%clk 0:00:16]} 35. Kc3 {[%clk 0:01:19]}  Ne5 {[%clk 0:00:17]} 36. Bxh7 {[%clk 0:01:19]}  Nxf3 {[%clk 0:00:17]} 37. h5 {[%clk 0:01:12]}  gxh5 {[%clk 0:00:11]} 38. g6 {[%clk 0:01:12]}  Ke7 {[%clk 0:00:06]} 39. g7 {[%clk 0:01:12]}  Kf7 {[%clk 0:00:06]} 40. g8=Q+ {[%clk 0:01:12]} 1-0


[Site "https://www.chess.com"]

[Event "Titled Tuesday Blitz February 07 Early 2023"]
[White "Ruiz Aguilar, Pablo Alexander"]
[Black "Tarasova, Viktoriya"]
[WhiteFideId "4401352"]
[BlackFideId "4175840"]
[WhiteElo "2161"]
[BlackElo "2226"]
[Result "0-1"]
[Round "08"]
[TimeControl "180+2"]
[Date "2023.02.07"]
[WhiteClock "0:00:05"]
[BlackClock "0:00:27"]

1. e4 {[%clk 0:02:57]}  c5 {[%clk 0:02:57]} 2. Nf3 {[%clk 0:02:56]}  d6 {[%clk 0:02:58]} 3. d4 {[%clk 0:02:56]}  cxd4 {[%clk 0:02:58]} 4. Nxd4 {[%clk 0:02:57]}  Nf6 {[%clk 0:02:58]} 5. Nc3 {[%clk 0:02:57]}  a6 {[%clk 0:02:59]} 6. Be2 {[%clk 0:02:58]}  e5 {[%clk 0:02:59]} 7. Nf3 {[%clk 0:02:58]}  Be7 {[%clk 0:02:59]} 8. Bg5 {[%clk 0:02:58]}  Nbd7 {[%clk 0:02:58]} 9. Nd2 {[%clk 0:02:50]}  b5 {[%clk 0:02:57]} 10. a4 {[%clk 0:02:45]}  b4 {[%clk 0:02:57]} 11. Na2 {[%clk 0:02:45]}  a5 {[%clk 0:02:44]} 12. c3 {[%clk 0:02:45]}  bxc3 {[%clk 0:02:42]} 13. Nxc3 {[%clk 0:02:45]}  O-O {[%clk 0:02:42]} 14. O-O {[%clk 0:02:30]}  Nc5 {[%clk 0:02:30]} 15. Bxf6 {[%clk 0:02:25]}  Bxf6 {[%clk 0:02:30]} 16. Nc4 {[%clk 0:02:18]}  Be7 {[%clk 0:02:27]} 17. Nd5 {[%clk 0:02:07]}  Ba6 {[%clk 0:02:17]} 18. Nxe7+ {[%clk 0:01:16]}  Qxe7 {[%clk 0:02:17]} 19. Nb6 {[%clk 0:01:16]}  Rab8 {[%clk 0:02:11]} 20. Nd5 {[%clk 0:01:15]}  Qa7 {[%clk 0:02:05]} 21. Bxa6 {[%clk 0:01:14]}  Qxa6 {[%clk 0:02:02]} 22. Nc7 {[%clk 0:01:06]}  Qc6 {[%clk 0:01:55]} 23. Nb5 {[%clk 0:01:05]}  Nxe4 {[%clk 0:01:51]} 24. Rc1 {[%clk 0:01:02]}  Qa8 {[%clk 0:01:28]} 25. Rc7 {[%clk 0:00:45]}  d5 {[%clk 0:01:21]} 26. Qc2 {[%clk 0:00:33]}  Rbc8 {[%clk 0:01:18]} 27. Rc1 {[%clk 0:00:28]}  Rxc7 {[%clk 0:01:18]} 28. Qxc7 {[%clk 0:00:28]}  d4 {[%clk 0:01:12]} 29. f3 {[%clk 0:00:19]}  Nf6 {[%clk 0:01:02]} 30. Qxe5 {[%clk 0:00:19]}  d3 {[%clk 0:01:00]} 31. Rd1 {[%clk 0:00:18]}  Rd8 {[%clk 0:00:58]} 32. Qe3 {[%clk 0:00:18]}  Qd5 {[%clk 0:00:51]} 33. Nc3 {[%clk 0:00:17]}  Qd7 {[%clk 0:00:47]} 34. Nb5 {[%clk 0:00:11]}  h6 {[%clk 0:00:44]} 35. Kf2 {[%clk 0:00:11]}  Qd5 {[%clk 0:00:37]} 36. Nc3 {[%clk 0:00:10]}  Qc4 {[%clk 0:00:37]} 37. Rd2 {[%clk 0:00:06]}  Rd7 {[%clk 0:00:35]} 38. Qb6 {[%clk 0:00:06]}  Kh7 {[%clk 0:00:33]} 39. Qxa5 {[%clk 0:00:05]}  Qd4+ {[%clk 0:00:31]} 40. Kf1 {[%clk 0:00:05]}  Qe3 {[%clk 0:00:27]} 0-1


[Site "https://www.chess.com"]

[Event "Titled Tuesday Blitz February 07 Early 2023"]
[White "Marchesich, Giovanni"]
[Black "Dinu, Dumitru-Daniel"]
[WhiteFideId "2824790"]
[BlackFideId "1208403"]
[WhiteElo "2217"]
[BlackElo "2203"]
[Result "0-1"]
[Round "08"]
[TimeControl "180+2"]
[Date "2023.02.07"]
[WhiteClock "0:00:02"]
[BlackClock "0:00:09"]

1. e4 {[%clk 0:03:00]}  d5 {[%clk 0:02:57]} 2. Nc3 {[%clk 0:03:00]}  dxe4 {[%clk 0:02:56]} 3. d3 {[%clk 0:03:00]}  exd3 {[%clk 0:02:55]} 4. Bxd3 {[%clk 0:03:00]}  Nf6 {[%clk 0:02:53]} 5. Nf3 {[%clk 0:02:57]}  Bg4 {[%clk 0:02:53]} 6. O-O {[%clk 0:02:57]}  Nc6 {[%clk 0:02:53]} 7. h3 {[%clk 0:02:56]}  Bxf3 {[%clk 0:02:53]} 8. Qxf3 {[%clk 0:02:56]}  e6 {[%clk 0:02:53]} 9. Bf4 {[%clk 0:02:54]}  Bd6 {[%clk 0:02:53]} 10. Rad1 {[%clk 0:02:52]}  O-O {[%clk 0:02:52]} 11. Bg5 {[%clk 0:02:50]}  h6 {[%clk 0:02:48]} 12. Bh4 {[%clk 0:02:48]}  Qe7 {[%clk 0:02:33]} 13. Ne4 {[%clk 0:02:45]}  Be5 {[%clk 0:02:32]} 14. g4 {[%clk 0:02:29]}  Rad8 {[%clk 0:02:11]} 15. Qg2 {[%clk 0:02:27]}  g5 {[%clk 0:02:08]} 16. Bg3 {[%clk 0:02:23]}  Bxg3 {[%clk 0:02:08]} 17. fxg3 {[%clk 0:02:20]}  Nxe4 {[%clk 0:01:49]} 18. Qxe4 {[%clk 0:02:19]}  f5 {[%clk 0:01:49]} 19. gxf5 {[%clk 0:02:04]}  exf5 {[%clk 0:01:48]} 20. Qc4+ {[%clk 0:01:52]}  Kg7 {[%clk 0:01:44]} 21. Rde1 {[%clk 0:01:34]}  Qd6 {[%clk 0:01:33]} 22. Qc3+ {[%clk 0:01:25]}  Qd4+ {[%clk 0:01:29]} 23. Qxd4+ {[%clk 0:01:25]}  Nxd4 {[%clk 0:01:29]} 24. c3 {[%clk 0:01:24]}  Nc6 {[%clk 0:01:26]} 25. Bxf5 {[%clk 0:01:15]}  Rd2 {[%clk 0:01:24]} 26. g4 {[%clk 0:01:09]}  Rxb2 {[%clk 0:01:18]} 27. Re6 {[%clk 0:01:05]}  Rf6 {[%clk 0:01:08]} 28. Re8 {[%clk 0:01:05]}  Rd2 {[%clk 0:00:53]} 29. Rfe1 {[%clk 0:00:53]}  Rd8 {[%clk 0:00:49]} 30. R8e4 {[%clk 0:00:30]}  Rdf8 {[%clk 0:00:42]} 31. Rd1 {[%clk 0:00:29]}  Rd6 {[%clk 0:00:42]} 32. Rde1 {[%clk 0:00:27]}  Rf7 {[%clk 0:00:26]} 33. Re8 {[%clk 0:00:26]}  Rd8 {[%clk 0:00:20]} 34. R8e6 {[%clk 0:00:22]}  Rf6 {[%clk 0:00:20]} 35. R6e4 {[%clk 0:00:21]}  Rfd6 {[%clk 0:00:20]} 36. Kf2 {[%clk 0:00:15]}  Rd2+ {[%clk 0:00:20]} 37. R1e2 {[%clk 0:00:14]}  Rxe2+ {[%clk 0:00:21]} 38. Rxe2 {[%clk 0:00:15]}  Rd6 {[%clk 0:00:16]} 39. Re8 {[%clk 0:00:14]}  Nd8 {[%clk 0:00:14]} 40. Re2 {[%clk 0:00:12]}  Nf7 {[%clk 0:00:14]} 41. c4 {[%clk 0:00:09]}  Kf6 {[%clk 0:00:14]} 42. Kf3 {[%clk 0:00:09]}  Ne5+ {[%clk 0:00:14]} 43. Kg3 {[%clk 0:00:06]}  Nxc4 {[%clk 0:00:11]} 44. Re8 {[%clk 0:00:07]}  Ne5 {[%clk 0:00:11]} 45. Rf8+ {[%clk 0:00:06]}  Kg7 {[%clk 0:00:10]} 46. Rc8 {[%clk 0:00:06]}  Rc6 {[%clk 0:00:09]} 47. Re8 {[%clk 0:00:05]}  Nf7 {[%clk 0:00:10]} 48. Rb8 {[%clk 0:00:04]}  b6 {[%clk 0:00:10]} 49. Rb7 {[%clk 0:00:05]}  a5 {[%clk 0:00:10]} 50. a4 {[%clk 0:00:05]}  Nd6 {[%clk 0:00:10]} 51. Be6 {[%clk 0:00:03]}  Nxb7 {[%clk 0:00:09]} 52. Bd5 {[%clk 0:00:02]}  Rc3+ {[%clk 0:00:09]} 0-1


[Site "https://www.chess.com"]

[Event "Titled Tuesday Blitz February 07 Early 2023"]
[White "Horak, Martin"]
[Black "Zaichenko, Daria"]
[WhiteFideId "367095"]
[BlackFideId "4197453"]
[WhiteElo "2266"]
[BlackElo "2104"]
[Result "1-0"]
[Round "08"]
[TimeControl "180+2"]
[Date "2023.02.07"]
[WhiteClock "0:00:13"]
[BlackClock "0:00:01"]

1. e4 {[%clk 0:03:00]}  c5 {[%clk 0:02:41]} 2. Nf3 {[%clk 0:03:00]}  Nc6 {[%clk 0:02:37]} 3. Bb5 {[%clk 0:02:56]}  g6 {[%clk 0:02:35]} 4. Bxc6 {[%clk 0:02:56]}  bxc6 {[%clk 0:02:30]} 5. d4 {[%clk 0:02:55]}  cxd4 {[%clk 0:02:29]} 6. Qxd4 {[%clk 0:02:56]}  Nf6 {[%clk 0:02:27]} 7. e5 {[%clk 0:02:53]}  Nd5 {[%clk 0:02:26]} 8. O-O {[%clk 0:02:48]}  Bg7 {[%clk 0:02:25]} 9. Qh4 {[%clk 0:02:43]}  O-O {[%clk 0:02:21]} 10. Bh6 {[%clk 0:02:43]}  e6 {[%clk 0:02:16]} 11. Ng5 {[%clk 0:02:34]}  f6 {[%clk 0:02:01]} 12. exf6 {[%clk 0:02:14]}  Qxf6 {[%clk 0:01:49]} 13. c3 {[%clk 0:01:57]}  Ba6 {[%clk 0:01:46]} 14. Bxg7 {[%clk 0:01:49]}  Qxg7 {[%clk 0:01:43]} 15. Re1 {[%clk 0:01:48]}  Ne7 {[%clk 0:01:34]} 16. Nd2 {[%clk 0:01:43]}  Nf5 {[%clk 0:01:33]} 17. Qa4 {[%clk 0:01:20]}  Bb7 {[%clk 0:01:26]} 18. Ngf3 {[%clk 0:01:14]}  c5 {[%clk 0:01:21]} 19. Qb5 {[%clk 0:01:07]}  Bxf3 {[%clk 0:01:16]} 20. Nxf3 {[%clk 0:01:07]}  Rac8 {[%clk 0:01:16]} 21. Rad1 {[%clk 0:01:06]}  Rc7 {[%clk 0:01:12]} 22. Ne5 {[%clk 0:01:03]}  d6 {[%clk 0:01:03]} 23. Nf3 {[%clk 0:01:02]}  e5 {[%clk 0:00:56]} 24. h3 {[%clk 0:00:59]}  Qe7 {[%clk 0:00:45]} 25. a4 {[%clk 0:00:46]}  Rb7 {[%clk 0:00:40]} 26. Qc4+ {[%clk 0:00:45]}  Kh8 {[%clk 0:00:38]} 27. Rd2 {[%clk 0:00:42]}  Qf7 {[%clk 0:00:31]} 28. Qxf7 {[%clk 0:00:39]}  Rfxf7 {[%clk 0:00:26]} 29. Ng5 {[%clk 0:00:40]}  Rfd7 {[%clk 0:00:23]} 30. Ne4 {[%clk 0:00:38]}  Rbc7 {[%clk 0:00:20]} 31. Red1 {[%clk 0:00:37]}  Kg7 {[%clk 0:00:17]} 32. Nxd6 {[%clk 0:00:36]}  Nxd6 {[%clk 0:00:17]} 33. Rxd6 {[%clk 0:00:36]}  Rxd6 {[%clk 0:00:17]} 34. Rxd6 {[%clk 0:00:37]}  Rb7 {[%clk 0:00:18]} 35. Rd5 {[%clk 0:00:32]}  Rxb2 {[%clk 0:00:17]} 36. Rxc5 {[%clk 0:00:30]}  Rb3 {[%clk 0:00:14]} 37. Rxe5 {[%clk 0:00:29]}  Rxc3 {[%clk 0:00:14]} 38. Re7+ {[%clk 0:00:29]}  Kh6 {[%clk 0:00:13]} 39. Rxa7 {[%clk 0:00:30]}  Ra3 {[%clk 0:00:13]} 40. Kh2 {[%clk 0:00:28]}  Ra2 {[%clk 0:00:12]} 41. f3 {[%clk 0:00:28]}  Kg5 {[%clk 0:00:11]} 42. Kg3 {[%clk 0:00:26]}  h5 {[%clk 0:00:10]} 43. h4+ {[%clk 0:00:26]}  Kf5 {[%clk 0:00:10]} 44. Ra5+ {[%clk 0:00:26]}  Kf6 {[%clk 0:00:10]} 45. Ra6+ {[%clk 0:00:22]}  Kg7 {[%clk 0:00:10]} 46. a5 {[%clk 0:00:20]}  Kh7 {[%clk 0:00:10]} 47. Kh3 {[%clk 0:00:18]}  Kg7 {[%clk 0:00:10]} 48. Ra8 {[%clk 0:00:15]}  Ra3 {[%clk 0:00:08]} 49. Kg3 {[%clk 0:00:15]}  Kh7 {[%clk 0:00:08]} 50. Kf4 {[%clk 0:00:14]}  Ra4+ {[%clk 0:00:05]} 51. Kg5 {[%clk 0:00:15]}  Ra2 {[%clk 0:00:05]} 52. g4 {[%clk 0:00:14]}  hxg4 {[%clk 0:00:06]} 53. fxg4 {[%clk 0:00:15]}  Ra4 {[%clk 0:00:05]} 54. Ra7+ {[%clk 0:00:12]}  Kh8 {[%clk 0:00:01]} 55. a6 {[%clk 0:00:13]} 1-0


[Site "https://www.chess.com"]

[Event "Titled Tuesday Blitz February 07 Early 2023"]
[White "Good, Daniel"]
[Black "Begunov, Konstantin"]
[WhiteFideId "1302388"]
[BlackFideId "4118510"]
[WhiteElo "2141"]
[BlackElo "2325"]
[Result "0-1"]
[Round "08"]
[TimeControl "180+2"]
[Date "2023.02.07"]
[WhiteClock "0:00:04"]
[BlackClock "0:00:15"]

1. e4 {[%clk 0:03:00]}  c5 {[%clk 0:02:58]} 2. d4 {[%clk 0:02:58]}  cxd4 {[%clk 0:02:57]} 3. c3 {[%clk 0:02:58]}  Nf6 {[%clk 0:02:57]} 4. e5 {[%clk 0:02:58]}  Nd5 {[%clk 0:02:57]} 5. Nf3 {[%clk 0:02:57]}  Nc6 {[%clk 0:02:57]} 6. cxd4 {[%clk 0:02:56]}  d6 {[%clk 0:02:56]} 7. Bc4 {[%clk 0:02:47]}  Nb6 {[%clk 0:02:54]} 8. Bb5 {[%clk 0:02:45]}  d5 {[%clk 0:02:54]} 9. O-O {[%clk 0:02:44]}  Bg4 {[%clk 0:02:54]} 10. Be3 {[%clk 0:02:42]}  e6 {[%clk 0:02:53]} 11. h3 {[%clk 0:02:42]}  Bh5 {[%clk 0:02:52]} 12. Nbd2 {[%clk 0:02:40]}  Rc8 {[%clk 0:02:52]} 13. Rc1 {[%clk 0:02:34]}  a6 {[%clk 0:02:51]} 14. Bd3 {[%clk 0:02:24]}  Be7 {[%clk 0:02:50]} 15. a3 {[%clk 0:02:16]}  Na5 {[%clk 0:02:43]} 16. b4 {[%clk 0:02:12]}  Nac4 {[%clk 0:02:38]} 17. Qb3 {[%clk 0:01:59]}  Nxd2 {[%clk 0:01:09]} 18. Nxd2 {[%clk 0:01:53]}  O-O {[%clk 0:01:09]} 19. f4 {[%clk 0:01:45]}  Bg6 {[%clk 0:01:06]} 20. f5 {[%clk 0:01:27]}  Bxf5 {[%clk 0:01:01]} 21. Bxf5 {[%clk 0:01:21]}  exf5 {[%clk 0:00:59]} 22. Qd3 {[%clk 0:00:56]}  Rxc1 {[%clk 0:00:51]} 23. Rxc1 {[%clk 0:00:57]}  Qd7 {[%clk 0:00:51]} 24. Nb3 {[%clk 0:00:50]}  Rc8 {[%clk 0:00:50]} 25. Nc5 {[%clk 0:00:49]}  Bxc5 {[%clk 0:00:43]} 26. dxc5 {[%clk 0:00:44]}  Na8 {[%clk 0:00:43]} 27. Rd1 {[%clk 0:00:43]}  Nc7 {[%clk 0:00:39]} 28. Rf1 {[%clk 0:00:40]}  g6 {[%clk 0:00:35]} 29. Bg5 {[%clk 0:00:40]}  Ne6 {[%clk 0:00:32]} 30. Bf6 {[%clk 0:00:40]}  d4 {[%clk 0:00:31]} 31. h4 {[%clk 0:00:29]}  Qb5 {[%clk 0:00:29]} 32. Qg3 {[%clk 0:00:26]}  Qe2 {[%clk 0:00:24]} 33. Rxf5 {[%clk 0:00:25]}  d3 {[%clk 0:00:20]} 34. Rf2 {[%clk 0:00:17]}  Qe1+ {[%clk 0:00:17]} 35. Kh2 {[%clk 0:00:18]}  d2 {[%clk 0:00:17]} 36. Qf3 {[%clk 0:00:04]}  d1=Q {[%clk 0:00:15]} 0-1


[Site "https://www.chess.com"]

[Event "Titled Tuesday Blitz February 07 Early 2023"]
[White "Womacka, Mathias"]
[Black "Theytookourjobs"]
[WhiteFideId "4611390"]
[WhiteElo "2396"]
[BlackElo "2291"]
[Result "1/2-1/2"]
[Round "08"]
[TimeControl "180+2"]
[Date "2023.02.07"]
[WhiteClock "0:00:03"]
[BlackClock "0:00:03"]

1. e4 {[%clk 0:03:00]}  e6 {[%clk 0:02:58]} 2. d4 {[%clk 0:02:59]}  d5 {[%clk 0:02:58]} 3. Nd2 {[%clk 0:03:00]}  Be7 {[%clk 0:02:58]} 4. Ngf3 {[%clk 0:02:55]}  Nf6 {[%clk 0:02:59]} 5. e5 {[%clk 0:02:54]}  Nfd7 {[%clk 0:02:59]} 6. Bd3 {[%clk 0:02:53]}  c5 {[%clk 0:02:59]} 7. c3 {[%clk 0:02:54]}  Nc6 {[%clk 0:02:59]} 8. O-O {[%clk 0:02:53]}  Qb6 {[%clk 0:02:57]} 9. dxc5 {[%clk 0:02:48]}  Nxc5 {[%clk 0:02:55]} 10. Bc2 {[%clk 0:02:46]}  O-O {[%clk 0:02:50]} 11. Nb3 {[%clk 0:02:40]}  Nxb3 {[%clk 0:02:27]} 12. axb3 {[%clk 0:02:39]}  f6 {[%clk 0:02:25]} 13. Qd3 {[%clk 0:01:59]}  f5 {[%clk 0:02:22]} 14. b4 {[%clk 0:01:53]}  Bd7 {[%clk 0:02:01]} 15. Re1 {[%clk 0:01:46]}  Rac8 {[%clk 0:01:58]} 16. Bg5 {[%clk 0:00:58]}  Bxb4 {[%clk 0:01:47]} 17. Ba4 {[%clk 0:00:26]}  Bc5 {[%clk 0:01:41]} 18. Qd2 {[%clk 0:00:26]}  Qc7 {[%clk 0:01:02]} 19. Bxc6 {[%clk 0:00:16]}  Bxc6 {[%clk 0:00:58]} 20. Be3 {[%clk 0:00:17]}  Bxe3 {[%clk 0:00:50]} 21. Rxe3 {[%clk 0:00:18]}  a6 {[%clk 0:00:39]} 22. Nd4 {[%clk 0:00:18]}  f4 {[%clk 0:00:34]} 23. Rh3 {[%clk 0:00:17]}  Qxe5 {[%clk 0:00:32]} 24. Re1 {[%clk 0:00:14]}  Qf6 {[%clk 0:00:16]} 25. Nxe6 {[%clk 0:00:14]}  Bd7 {[%clk 0:00:12]} 26. Qxd5 {[%clk 0:00:12]}  Bxe6 {[%clk 0:00:08]} 27. Rxe6 {[%clk 0:00:11]}  Qf7 {[%clk 0:00:07]} 28. Rd3 {[%clk 0:00:10]}  Rcd8 {[%clk 0:00:05]} 29. Rd6 {[%clk 0:00:08]}  Qxd5 {[%clk 0:00:04]} 30. R3xd5 {[%clk 0:00:09]}  Rxd6 {[%clk 0:00:04]} 31. Rxd6 {[%clk 0:00:10]}  Re8 {[%clk 0:00:03]} 32. Kf1 {[%clk 0:00:09]}  Kf7 {[%clk 0:00:04]} 33. Rd7+ {[%clk 0:00:08]}  Re7 {[%clk 0:00:04]} 34. Rxe7+ {[%clk 0:00:09]}  Kxe7 {[%clk 0:00:05]} 35. Ke2 {[%clk 0:00:09]}  Ke6 {[%clk 0:00:05]} 36. Kf3 {[%clk 0:00:09]}  Kf5 {[%clk 0:00:06]} 37. g4+ {[%clk 0:00:08]}  fxg3 {[%clk 0:00:05]} 38. fxg3 {[%clk 0:00:08]}  b5 {[%clk 0:00:06]} 39. b4 {[%clk 0:00:06]}  g5 {[%clk 0:00:05]} 40. h3 {[%clk 0:00:06]}  h5 {[%clk 0:00:05]} 41. Ke3 {[%clk 0:00:06]}  Ke5 {[%clk 0:00:04]} 42. Kd3 {[%clk 0:00:06]}  Kd5 {[%clk 0:00:05]} 43. Ke3 {[%clk 0:00:03]}  Ke5 {[%clk 0:00:05]} 44. Kd3 {[%clk 0:00:03]}  Kd5 {[%clk 0:00:06]} 45. Ke3 {[%clk 0:00:03]}  Ke5 {[%clk 0:00:03]} 1/2-1/2


[Site "https://www.chess.com"]

[Event "Titled Tuesday Blitz February 07 Early 2023"]
[White "Zanette, Edgard Vinicius"]
[Black "Herman, Daniel"]
[WhiteFideId "2109263"]
[BlackFideId "30935008"]
[WhiteElo "2085"]
[BlackElo "1956"]
[Result "0-1"]
[Round "08"]
[TimeControl "180+2"]
[Date "2023.02.07"]
[WhiteClock "0:00:04"]
[BlackClock "0:00:22"]

1. e4 {[%clk 0:02:35]}  c5 {[%clk 0:02:57]} 2. Nf3 {[%clk 0:02:34]}  e6 {[%clk 0:02:57]} 3. c3 {[%clk 0:02:32]}  Nf6 {[%clk 0:02:57]} 4. e5 {[%clk 0:02:31]}  Nd5 {[%clk 0:02:57]} 5. d4 {[%clk 0:02:21]}  cxd4 {[%clk 0:02:58]} 6. Bc4 {[%clk 0:02:14]}  Nb6 {[%clk 0:02:54]} 7. Bb3 {[%clk 0:02:14]}  dxc3 {[%clk 0:02:49]} 8. Nxc3 {[%clk 0:02:12]}  d5 {[%clk 0:02:42]} 9. exd6 {[%clk 0:02:09]}  Bxd6 {[%clk 0:02:40]} 10. O-O {[%clk 0:00:56]}  O-O {[%clk 0:02:39]} 11. Qe2 {[%clk 0:00:50]}  Nc6 {[%clk 0:02:35]} 12. Rd1 {[%clk 0:00:49]}  Qe7 {[%clk 0:02:28]} 13. Ne4 {[%clk 0:00:49]}  Bc7 {[%clk 0:02:10]} 14. Be3 {[%clk 0:00:50]}  Rd8 {[%clk 0:01:50]} 15. Bc5 {[%clk 0:00:50]}  Qe8 {[%clk 0:01:44]} 16. Nfg5 {[%clk 0:00:48]}  h6 {[%clk 0:01:30]} 17. Qh5 {[%clk 0:00:47]}  Nd5 {[%clk 0:01:13]} 18. Bxd5 {[%clk 0:00:43]}  exd5 {[%clk 0:01:12]} 19. Nf6+ {[%clk 0:00:34]}  gxf6 {[%clk 0:01:13]} 20. Qxh6 {[%clk 0:00:32]}  Bf5 {[%clk 0:00:53]} 21. g4 {[%clk 0:00:26]}  Bg6 {[%clk 0:00:47]} 22. h4 {[%clk 0:00:07]}  fxg5 {[%clk 0:00:39]} 23. h5 {[%clk 0:00:04]}  Qe4 {[%clk 0:00:22]} 0-1


[Site "https://www.chess.com"]

[Event "Titled Tuesday Blitz February 07 Early 2023"]
[White "Lesbekova, Assel"]
[Black "Ronka, Erik"]
[WhiteFideId "13713248"]
[BlackFideId "505080"]
[WhiteElo "1772"]
[BlackElo "2276"]
[Result "0-1"]
[Round "08"]
[TimeControl "180+2"]
[Date "2023.02.07"]
[WhiteClock "0:01:35"]
[BlackClock "0:03:00"]

1. e4 {[%clk 0:03:00]}  c6 {[%clk 0:03:00]} 2. d4 {[%clk 0:02:59]}  d5 {[%clk 0:03:01]} 3. Nd2 {[%clk 0:02:59]}  dxe4 {[%clk 0:03:01]} 4. Nxe4 {[%clk 0:03:00]}  Bf5 {[%clk 0:03:02]} 5. Ng3 {[%clk 0:02:59]}  Bg6 {[%clk 0:03:02]} 6. Nh3 {[%clk 0:02:59]}  e6 {[%clk 0:03:02]} 7. Nf4 {[%clk 0:02:59]}  Bd6 {[%clk 0:03:02]} 8. h4 {[%clk 0:02:58]}  Qc7 {[%clk 0:03:03]} 9. h5 {[%clk 0:02:58]}  Bxc2 {[%clk 0:03:02]} 10. Qxc2 {[%clk 0:02:19]}  Bxf4 {[%clk 0:03:03]} 11. Bxf4 {[%clk 0:02:18]}  Qxf4 {[%clk 0:03:04]} 12. Rd1 {[%clk 0:02:16]}  Nf6 {[%clk 0:03:03]} 13. h6 {[%clk 0:02:13]}  g6 {[%clk 0:03:03]} 14. Qd2 {[%clk 0:02:12]}  Qxd2+ {[%clk 0:03:02]} 15. Rxd2 {[%clk 0:02:12]}  Nbd7 {[%clk 0:03:03]} 16. f3 {[%clk 0:02:10]}  Ke7 {[%clk 0:03:03]} 17. Ne4 {[%clk 0:02:10]}  Nxe4 {[%clk 0:03:03]} 18. fxe4 {[%clk 0:02:11]}  Nf6 {[%clk 0:03:03]} 19. Bd3 {[%clk 0:02:05]}  Rhd8 {[%clk 0:03:03]} 20. Bc2 {[%clk 0:02:04]}  e5 {[%clk 0:03:04]} 21. dxe5 {[%clk 0:02:03]}  Ng4 {[%clk 0:03:05]} 22. e6 {[%clk 0:01:57]}  fxe6 {[%clk 0:03:03]} 23. Rh4 {[%clk 0:01:48]}  Ne5 {[%clk 0:03:02]} 24. b3 {[%clk 0:01:45]}  Rxd2 {[%clk 0:03:01]} 25. Kxd2 {[%clk 0:01:46]}  a5 {[%clk 0:03:01]} 26. Rf4 {[%clk 0:01:41]}  Nf7 {[%clk 0:03:00]} 27. Rh4 {[%clk 0:01:39]}  Rf8 {[%clk 0:02:59]} 28. g4 {[%clk 0:01:39]}  Ne5 {[%clk 0:03:00]} 29. g5 {[%clk 0:01:35]}  Nf3+ {[%clk 0:03:00]} 0-1


[Site "https://www.chess.com"]